bitfinex-derivatives/quotes_SOLF0:USTF0_20241230
["timestamp","ask_amount","ask_price","bid_price","bid_amount"]
[1735517321443,15.25489767,190.24,190.13,12.09489767]
[1735517322554,2.6339,190.18,190.13,12.09489767]
[1735517323345,3.16,190.24,190.13,14.72949767]
[1735517323549,3.16,190.24,190.1,4.6804]
[1735517323550,2.6337,190.2,190.16,12.09489767]
[1735517324658,3.16,190.27,190.16,12.09489767]
[1735517324855,2.6338,190.19,190.16,12.09489767]
[1735517325254,2.6331,190.24,190.16,12.09489767]
[1735517325455,3.16,190.27,190.16,12.09489767]
[1735517325655,3.16,190.27,190.16,14.72899767]
[1735517325857,2.633,190.25,190.16,12.09489767]
[1735517326050,12.09489767,190.31,190.19,12.09489767]
[1735517326252,12.09489767,190.31,190.2,6.4295]
[1735517326450,12.09489767,190.31,190.2,9.0631]
[1735517326655,3.16,190.33,190.22,12.09489767]
[1735517327158,12.09489767,190.34,190.22,12.09489767]
[1735517327644,12.09489767,190.34,190.23,2.6332]
[1735517327851,12.09489767,190.34,190.22,12.09489767]
[1735517328247,2.6323,190.3,190.23,2.6332]
[1735517329157,2.6324,190.29,190.23,2.6332]
[1735517330054,2.6322,190.31,190.25,14.72769767]
[1735517330355,2.6322,190.31,190.26,3.16]
[1735517330548,2.6324,190.29,190.26,3.16]
[1735517330749,58.17398398,190.42,190.26,3.16]
[1735517330952,58.17398398,190.42,190.32,12.09489767]
[1735517331156,58.17398398,190.42,190.33,3.16]
[1735517331460,2.631,190.39,190.33,7.2741]
[1735517331660,58.17398398,190.42,190.33,4.6423]
[1735517332256,42.36677199,190.46,190.33,4.6423]
[1735517332257,12.09489767,190.46,190.33,4.6423]
[1735517332451,35.1900266,190.46,190.33,4.6423]
[1735517332649,15.25489767,190.46,190.33,4.6423]
[1735517332854,26.06820353,190.46,190.33,4.6423]
[1735517333056,15.25489767,190.46,190.33,4.6423]
[1735517333555,2.631,190.4,190.33,4.6423]
[1735517333964,15.25489767,190.46,190.33,4.6423]
[1735517335055,12.09489767,190.43,190.33,4.6423]
[1735517335658,2.6309,190.4,190.33,4.6423]
[1735517336262,2.6309,190.4,190.33,6.1701]
[1735517336462,2.6309,190.4,190.33,8.8019]
[1735517336859,1.5133,190.47,190.35,12.09489767]
[1735517336860,4.6733,190.47,190.35,12.09489767]
[1735517337464,12.09489767,190.45,190.35,12.09489767]
[1735517337861,2.6308,190.41,190.35,12.09489767]
[1735517339770,2.631,190.4,190.35,12.09489767]
[1735517339966,12.09489767,190.45,190.35,12.09489767]
[1735517340367,2.6306,190.42,190.35,12.09489767]
[1735517340570,12.09489767,190.45,190.34,3.16]
[1735517341170,12.09489767,190.42,190.31,3.16]
[1735517341470,12.09489767,190.39,190.29,15.25489767]
[1735517341867,2.6317,190.35,190.29,15.25489767]
[1735517342064,15.25489767,190.42,190.29,15.25489767]
[1735517342261,12.09489767,190.39,190.29,12.09489767]
[1735517342562,15.25489767,190.42,190.29,12.09489767]
[1735517343273,2.6318,190.34,190.3,3.16]
[1735517343466,15.25489767,190.42,190.3,3.16]
[1735517344175,15.25489767,190.42,190.31,1.5277]
[1735517345362,2.6313,190.38,190.31,4.1598]
[1735517345962,2.6313,190.38,190.32,12.09489767]
[1735517346977,2.6313,190.37,190.32,12.09489767]
[1735517348574,2.6314,190.36,190.32,12.09489767]
[1735517350973,12.09489767,190.41,190.31,1.5277]
[1735517352169,12.09489767,190.38,190.31,1.5277]
[1735517352374,2.6319,190.33,190.31,1.5277]
[1735517353770,2.6316,190.35,190.31,1.5277]
[1735517354492,2.6314,190.37,190.31,1.5277]
[1735517354680,2.6314,190.37,190.32,12.09489767]
[1735517354982,2.6314,190.37,190.33,3.16]
[1735517356473,12.09489767,190.45,190.33,3.16]
[1735517356679,3.16,190.46,190.35,12.09489767]
[1735517356874,3.16,190.46,190.36,1.6226]
[1735517357477,2.6303,190.44,190.37,2.6313]
[1735517357680,2.6303,190.44,190.38,3.16]
[1735517358472,13.61719767,190.48,190.38,3.16]
[1735517359584,13.61719767,190.48,190.36,3.1198]
[1735517359585,12.09489767,190.45,190.36,3.1198]
[1735517360471,12.09489767,190.45,190.36,1.6226]
[1735517361683,2.6308,190.41,190.36,1.6226]
[1735517362276,2.6306,190.42,190.37,2.6313]
[1735517363576,2.6306,190.42,190.36,4.254]
[1735517363775,2.6308,190.41,190.36,1.6226]
[1735517364579,2.6302,190.45,190.38,12.09489767]
[1735517365082,2.6302,190.45,190.4,2.6308]
[1735517365279,2.6302,190.45,190.4,5.7908]
[1735517366280,2.6302,190.45,190.4,3.16]
[1735517368079,12.09489767,190.51,190.4,3.16]
[1735517368284,12.09489767,190.51,190.41,2.6307]
[1735517368285,15.25489767,190.51,190.41,2.6307]
[1735517369286,2.6301,190.46,190.4,5.7908]
[1735517370993,2.6304,190.44,190.4,3.16]
[1735517371985,2.6307,190.41,190.39,1.635]
[1735517372189,3.94808533,190.5,190.38,15.23489767]
[1735517372391,15.25489767,190.51,190.38,15.23489767]
[1735517372791,2.6304,190.44,190.38,17.86589767]
[1735517372987,12.09489767,190.48,190.38,3.14]
[1735517373596,2.6306,190.42,190.38,3.14]
[1735517373796,12.09489767,190.48,190.38,3.14]
[1735517374400,10.82703986,190.51,190.38,3.14]
[1735517374598,13.089924,190.52,190.38,15.23489767]
[1735517374796,3.94801507,190.52,190.38,15.23489767]
[1735517375300,2.6301,190.46,190.41,2.6306]
[1735517375692,3.94759289,190.52,190.38,15.23489767]
[1735517375892,2.6302,190.45,190.4,2.6308]
[1735517376804,3.94759289,190.51,190.38,15.23489767]
[1735517377000,2.6304,190.44,190.39,2.631]
[1735517378095,2.6302,190.45,190.41,2.6307]
[1735517378302,13.09389359,190.52,190.38,15.23489767]
[1735517378601,3.94760557,190.52,190.38,15.23489767]
[1735517378801,2.6296,190.5,190.41,14.72559767]
[1735517378998,14.73159867,190.53,190.41,12.09489767]
[1735517379199,10.7839931,190.53,190.41,12.09489767]
[1735517379398,2.6295,190.5,190.41,12.09489767]
[1735517380001,2.6295,190.5,190.45,2.6301]
[1735517380202,2.6295,190.5,190.46,3.14]
[1735517381205,2.6297,190.49,190.46,3.14]
[1735517381504,25.17712678,190.57,190.46,3.14]
[1735517381801,21.2305216,190.57,190.46,3.14]
[1735517382203,12.09489767,190.57,190.46,5.7699]
[1735517383204,2.6293,190.51,190.46,3.14]
[1735517383803,2.6289,190.55,190.46,5.77]
[1735517384006,16.80249767,190.58,190.46,5.77]
[1735517384804,2.6295,190.5,190.46,3.14]
[1735517387003,2.6293,190.51,190.46,5.77]
[1735517387406,16.80249767,190.58,190.46,3.14]
[1735517387608,2.6293,190.52,190.47,2.6298]
[1735517388005,12.09489767,190.61,190.47,12.09489767]
[1735517388210,2.6289,190.55,190.5,2.6294]
[1735517388507,12.09489767,190.61,190.51,3.14]
[1735517388709,12.09489767,190.61,190.51,5.7692]
[1735517389100,12.09489767,190.61,190.51,3.14]
[1735517389508,2.6284,190.58,190.51,3.14]
[1735517389707,59.6307756,190.63,190.52,1.5675]
[1735517390011,2.6286,190.57,190.52,1.5675]
[1735517390210,2.6286,190.57,190.52,13.66239767]
[1735517390505,2.6286,190.57,190.52,17.90889767]
[1735517390912,2.6278,190.62,190.55,12.09489767]
[1735517391212,12.09489767,190.65,190.56,3.14]
[1735517392008,1.5344,190.69,190.56,3.14]
[1735517392409,1.5344,190.69,190.57,12.09489767]
[1735517392609,3.14,190.71,190.57,12.09489767]
[1735517392803,15.23489767,190.71,190.57,12.09489767]
[1735517393601,2.6271,190.68,190.61,2.6279]
[1735517393819,13.60479767,190.74,190.62,3.14]
[1735517394701,12.09489767,190.71,190.62,3.14]
[1735517395006,12.09489767,190.68,190.62,3.14]
[1735517395207,1.5099,190.74,190.62,3.14]
[1735517395409,12.09489767,190.72,190.62,3.14]
[1735517397016,2.6273,190.66,190.62,3.14]
[1735517397315,1.5099,190.74,190.57,12.09489767]
[1735517397316,12.09489767,190.69,190.57,12.09489767]
[1735517397611,12.09489767,190.66,190.54,15.23129767]
[1735517397815,12.09489767,190.66,190.55,3.14]
[1735517398314,2.6277,190.63,190.55,3.14]
[1735517398516,12.09489767,190.68,190.55,3.14]
[1735517398714,12.09489767,190.68,190.56,3.14]
[1735517399416,1.5498,190.67,190.56,3.14]
[1735517400217,12.09489767,190.65,190.55,3.14]
[1735517401019,2.6286,190.57,190.55,3.14]
[1735517401222,2.6286,190.57,190.54,15.23129767]
[1735517401410,2.6286,190.57,190.54,18.37129767]
[1735517401615,2.6286,190.57,190.54,6.2764]
[1735517401809,2.6287,190.56,190.54,6.2764]
[1735517402216,2.6287,190.56,190.54,4.7408]
[1735517402412,12.09489767,190.62,190.52,3.14]
[1735517402718,12.09489767,190.62,190.51,15.23489767]
[1735517403414,12.09489767,190.62,190.51,3.14]
[1735517404919,2.6289,190.55,190.51,3.14]
[1735517405712,0.6304,190.64,190.51,3.14]
[1735517405919,15.23489767,190.65,190.53,12.09489767]
[1735517406625,2.6287,190.56,190.53,12.09489767]
[1735517407520,15.23489767,190.65,190.53,12.09489767]
[1735517408225,2.6279,190.62,190.53,12.09489767]
[1735517408427,1.5498,190.67,190.54,3.0444]
[1735517408627,3.14,190.66,190.56,12.09489767]
[1735517408823,2.628,190.61,190.56,15.23489767]
[1735517409421,58.0230756,190.73,190.56,15.23489767]
[1735517409627,70.11797327,190.73,190.59,12.09489767]
[1735517409828,12.09489767,190.73,190.59,12.09489767]
[1735517410026,1.4884,190.72,190.59,12.09489767]
[1735517411228,12.09489767,190.7,190.56,12.09489767]
[1735517411428,3.14,190.69,190.57,3.14]
[1735517411828,2.6282,190.6,190.57,3.14]
[1735517412024,12.09489767,190.67,190.57,3.14]
[1735517412433,3.14,190.7,190.57,15.23489767]
[1735517412620,15.23489767,190.7,190.57,15.23489767]
[1735517413020,12.09489767,190.7,190.57,15.23489767]
[1735517413429,1.4964,190.74,190.6,12.09489767]
[1735517413624,2.6274,190.65,190.58,2.6283]
[1735517413829,1.4964,190.74,190.6,12.09489767]
[1735517414634,2.6274,190.66,190.6,12.09489767]
[1735517415131,1.4964,190.74,190.6,12.09489767]
[1735517415633,12.09489767,190.72,190.61,1.4948]
[1735517416029,4.6389,190.71,190.61,1.4948]
[1735517416534,2.6278,190.62,190.61,1.4948]
[1735517419129,1.4989,190.71,190.61,1.4948]
[1735517419825,2.6278,190.62,190.61,1.4948]
[1735517420732,3.14,190.8,190.61,1.4948]
[1735517421031,3.14,190.8,190.65,12.09489767]
[1735517421032,3.1327,190.75,190.65,12.09489767]
[1735517421231,3.1327,190.75,190.66,3.14]
[1735517422633,12.09489767,190.8,190.68,12.09489767]
[1735517422931,15.18109767,190.8,190.68,12.09489767]
[1735517424534,2.6262,190.74,190.68,12.09489767]
[1735517425729,2.6263,190.73,190.68,12.09489767]
[1735517426330,15.18109767,190.8,190.68,12.09489767]
[1735517426535,2.6267,190.7,190.68,3.14]
[1735517426730,15.18109767,190.8,190.68,3.14]
[1735517427535,2.627,190.69,190.64,3.14]
[1735517427739,2.627,190.69,190.64,15.23489767]
[1735517428538,2.627,190.68,190.64,15.23489767]
[1735517430337,3.14,190.76,190.64,15.23489767]
[1735517430736,3.14,190.76,190.64,17.86229767]
[1735517431131,3.14,190.76,190.64,14.72229767]
[1735517431335,15.18109767,190.8,190.65,5.7674]
[1735517431535,3.14,190.79,190.65,5.7674]
[1735517431939,2.6265,190.72,190.66,2.6272]
[1735517432332,18.32109767,190.8,190.67,12.09489767]
[1735517433343,18.32109767,190.8,190.67,14.72199767]
[1735517433642,18.32109767,190.8,190.67,12.09489767]
[1735517433845,2.6263,190.74,190.68,2.627]
[1735517435445,2.6263,190.73,190.68,2.627]
[1735517435638,2.6263,190.73,190.68,4.1886]
[1735517436042,15.18109767,190.8,190.68,1.5616]
[1735517436241,5.93607672,190.81,190.68,1.5616]
[1735517436440,2.79607672,190.81,190.68,1.5616]
[1735517436836,2.6263,190.74,190.68,4.1886]
[1735517437541,2.6263,190.74,190.7,12.09489767]
[1735517437739,2.6263,190.74,190.7,15.23489767]
[1735517438440,2.79607672,190.81,190.7,15.23489767]
[1735517438640,2.79607672,190.81,190.72,2.6264]
[1735517439046,2.6256,190.79,190.72,2.6264]
[1735517439241,2.79607672,190.81,190.71,1.5044]
[1735517439742,2.79607672,190.81,190.69,3.14]
[1735517440139,2.6257,190.78,190.69,3.14]
[1735517440338,8.46377409,190.79,190.71,8.46377409]
[1735517441651,8.46377409,190.8,190.73,8.46377409]
[1735517442547,2.79607672,190.81,190.73,8.46377409]
[1735517442741,2.6261,190.75,190.73,8.46377409]
[1735517442940,2.79607672,190.81,190.73,8.46377409]
[1735517443143,2.79607672,190.81,190.75,8.46377409]
[1735517443340,2.6257,190.78,190.75,8.46377409]
[1735517443539,2.79607672,190.81,190.75,8.46377409]
[1735517443749,2.79607672,190.81,190.7,1.5158]
[1735517443945,2.626,190.75,190.74,8.46377409]
[1735517444650,2.6264,190.73,190.72,8.46377409]
[1735517444947,2.79607672,190.81,190.7,8.46377409]
[1735517444948,8.46377409,190.78,190.7,8.46377409]
[1735517445450,2.6266,190.71,190.7,8.46377409]
[1735517446355,2.6269,190.69,190.68,1.5616]
[1735517447845,16.28166484,190.77,190.65,3.14]
[1735517448548,20.2244537,190.77,190.65,3.14]
[1735517448952,20.2244537,190.77,190.64,13.22646484]
[1735517449148,78.2475293,190.77,190.64,13.22646484]
[1735517449345,74.30474044,190.77,190.64,13.22646484]
[1735517449548,2.6273,190.67,190.64,13.22646484]
[1735517449745,13.22646484,190.74,190.63,3.14]
[1735517449946,2.6274,190.65,190.63,3.14]
[1735517450258,3.14,190.73,190.63,3.14]
[1735517450557,2.6273,190.67,190.63,3.14]
[1735517450747,3.14,190.73,190.63,3.14]
[1735517450949,2.6274,190.65,190.63,3.14]
[1735517451148,3.14,190.73,190.63,3.14]
[1735517451855,13.22646484,190.68,190.47,57.03242066]
[1735517452051,16.36646484,190.68,190.55,1.6159]
[1735517452250,3.1094,190.67,190.55,4.7559]
[1735517452455,2.6285,190.58,190.55,4.7559]
[1735517452654,2.6285,190.58,190.55,1.6159]
[1735517454258,73.24984639,190.67,190.55,1.6159]
[1735517454453,2.6286,190.57,190.55,1.6159]
[1735517456556,3.1094,190.67,190.55,1.6159]
[1735517456751,13.22646484,190.65,190.55,1.6159]
[1735517457261,2.6287,190.56,190.55,1.6159]
[1735517458057,2.6278,190.62,190.55,1.6159]
[1735517458262,13.22646484,190.65,190.55,1.6159]
[1735517459161,2.6284,190.59,190.55,1.6159]
[1735517460059,2.6281,190.61,190.55,4.2446]
[1735517461061,2.6277,190.64,190.57,13.22646484]
[1735517461259,1.6131,190.67,190.58,3.14]
[1735517461563,2.6271,190.68,190.62,2.6277]
[1735517461763,1.6251,190.72,190.63,3.14]
[1735517464569,2.6273,190.66,190.63,3.14]
[1735517465667,13.22646484,190.71,190.63,3.14]
[1735517465971,13.22646484,190.71,190.6,13.22646484]
[1735517466163,2.6275,190.65,190.6,13.22646484]
[1735517466460,13.22646484,190.71,190.6,13.22646484]
[1735517466662,2.6272,190.67,190.6,13.22646484]
[1735517467374,2.6273,190.66,190.61,2.6279]
[1735517468071,2.6271,190.68,190.63,2.6277]
[1735517468273,2.6271,190.68,190.64,8.46908217]
[1735517469381,2.6271,190.67,190.64,8.46908217]
[1735517470175,2.6271,190.67,190.63,2.6277]
[1735517473176,1.6251,190.72,190.62,1.6013]
[1735517473378,2.6277,190.63,190.59,3.14]
[1735517474770,2.6275,190.65,190.6,2.628]
[1735517474975,14.85811644,190.72,190.6,2.628]
[1735517476188,14.85811644,190.72,190.59,1.518]
[1735517476481,13.23301644,190.69,190.56,3.14]
[1735517476680,3.14,190.68,190.56,3.14]
[1735517477280,13.23301644,190.66,190.54,3.14]
[1735517477488,2.6285,190.58,190.54,3.14]
[1735517477981,2.6285,190.58,190.53,3.14]
[1735517478178,3.096,190.65,190.53,3.14]
[1735517479086,3.096,190.65,190.53,5.769]
[1735517479683,5.7234,190.65,190.59,2.6282]
[1735517479876,58.17152796,190.69,190.58,16.37301644]
[1735517480387,2.6271,190.68,190.62,2.6278]
[1735517480580,58.17152796,190.69,190.59,1.5631]
[1735517480780,2.6273,190.66,190.61,2.628]
[1735517480979,13.23301644,190.7,190.59,1.5631]
[1735517482686,13.23301644,190.67,190.58,3.14]
[1735517483482,2.6277,190.63,190.58,3.14]
[1735517483883,13.23301644,190.67,190.58,3.14]
[1735517484084,2.6277,190.63,190.58,3.14]
[1735517485989,2.628,190.61,190.58,3.14]
[1735517488986,13.23301644,190.67,190.58,3.14]
[1735517490089,3.14,190.66,190.54,5.7688]
[1735517490291,13.23301644,190.64,190.54,3.14]
[1735517490789,2.6283,190.59,190.54,5.7689]
[1735517491792,2.6284,190.58,190.54,5.7689]
[1735517492291,2.6284,190.58,190.54,2.6289]
[1735517493499,13.23301644,190.61,190.49,13.23301644]
[1735517493790,13.23301644,190.58,190.46,17.88811644]
[1735517493992,2.629,190.54,190.47,2.6298]
[1735517494193,8.48313005,190.55,190.48,8.48313005]
[1735517494591,2.6292,190.53,190.48,11.11283005]
[1735517494794,8.48313005,190.55,190.48,8.48313005]
[1735517496396,2.6293,190.52,190.47,2.6299]
[1735517496592,3.1147,190.57,190.46,4.6551]
[1735517497198,3.1147,190.57,190.48,2.6297]
[1735517498494,2.6292,190.53,190.48,2.6297]
[1735517498695,2.6292,190.53,190.46,1.5151]
[1735517498898,2.6292,190.53,190.47,2.6299]
[1735517499097,2.6289,190.55,190.46,1.5151]
[1735517499399,2.6289,190.55,190.49,2.6295]
[1735517500498,3.1147,190.57,190.49,2.6295]
[1735517500692,3.1147,190.57,190.46,4.145]
[1735517502295,2.6293,190.52,190.46,4.145]
[1735517502800,3.1147,190.57,190.46,4.145]
[1735517503403,3.1147,190.57,190.46,1.5151]
[1735517503597,2.6295,190.5,190.46,1.5151]
[1735517504300,2.6294,190.51,190.46,1.5151]
[1735517504496,13.25556214,190.55,190.45,13.25556214]
[1735517504794,13.25556214,190.55,190.43,2.6304]
[1735517504795,2.6297,190.49,190.43,2.6304]
[1735517505501,2.6298,190.48,190.43,2.6304]
[1735517506898,2.6299,190.47,190.43,2.6304]
[1735517507595,13.25556214,190.49,190.35,1.5072]
[1735517507795,13.25556214,190.49,190.36,3.14]
[1735517508098,2.6302,190.46,190.38,2.6311]
[1735517508303,16.39556214,190.49,190.38,2.6311]
[1735517508805,16.39556214,190.49,190.37,5.7712]
[1735517509004,1.55,190.48,190.37,5.7712]
[1735517509194,14.80556214,190.48,190.37,3.14]
[1735517509505,2.6305,190.43,190.38,2.6311]
[1735517509904,2.6306,190.42,190.37,5.7712]
[1735517510600,2.6308,190.41,190.37,5.7712]
[1735517510803,2.6308,190.41,190.36,13.25556214]
[1735517510804,16.32196214,190.48,190.36,2.6314]
[1735517511205,16.32196214,190.48,190.35,4.6472]
[1735517511705,3.0664,190.48,190.37,13.25556214]
[1735517511900,16.39556214,190.51,190.4,13.25556214]
[1735517512101,16.39556214,190.51,190.41,1.6327]
[1735517512304,3.14,190.53,190.41,1.6327]
[1735517513806,2.6296,190.49,190.44,2.6302]
[1735517515302,2.6296,190.49,190.43,2.6304]
[1735517516103,2.6293,190.52,190.47,2.6298]
[1735517517904,2.6293,190.52,190.47,2.6299]
[1735517518901,2.6294,190.51,190.47,2.6299]
[1735517520003,13.25556214,190.6,190.48,13.25556214]
[1735517520199,13.25556214,190.6,190.49,1.5221]
[1735517521003,2.6288,190.56,190.51,2.6293]
[1735517521201,2.6288,190.56,190.51,5.7693]
[1735517522007,2.6289,190.55,190.51,3.14]
[1735517522205,13.25556214,190.6,190.49,1.5221]
[1735517522510,2.6286,190.57,190.49,1.5221]
[1735517522710,13.25556214,190.6,190.49,1.5221]
[1735517523208,13.25556214,190.57,190.49,1.5221]
[1735517523405,13.25556214,190.57,190.48,3.14]
[1735517523610,16.39556214,190.57,190.44,1.6171]
[1735517523811,13.25556214,190.54,190.45,3.14]
[1735517524309,2.6298,190.48,190.45,3.14]
[1735517525212,2.6298,190.48,190.44,1.6171]
[1735517526511,13.25556214,190.57,190.44,1.6171]
[1735517526712,6.3149,190.59,190.46,13.25556214]
[1735517527013,2.6285,190.57,190.52,2.6292]
[1735517527509,2.6284,190.58,190.53,2.629]
[1735517527717,58.17152796,190.61,190.52,13.25556214]
[1735517527904,58.17152796,190.61,190.52,14.82046214]
[1735517528313,2.6281,190.61,190.55,2.6287]
[1735517528612,3.1749,190.64,190.55,2.6287]
[1735517528812,2.628,190.61,190.55,2.6287]
[1735517529112,2.628,190.61,190.52,14.82046214]
[1735517529113,3.1749,190.64,190.53,2.629]
[1735517529314,2.6282,190.6,190.53,2.629]
[1735517530014,13.25556214,190.63,190.53,2.629]
[1735517530209,13.25556214,190.63,190.52,14.82046214]
[1735517530414,13.25556214,190.63,190.55,2.6288]
[1735517530916,3.1749,190.64,190.55,2.6288]
[1735517531514,2.6281,190.61,190.55,2.6288]
[1735517532219,59.14202796,190.69,190.58,13.25556214]
[1735517532415,74.5706901,190.7,190.58,13.25556214]
[1735517532617,61.31512796,190.7,190.61,13.25556214]
[1735517532921,58.17152796,190.7,190.62,3.14]
[1735517533110,58.17152796,190.7,190.64,13.25556214]
[1735517533513,2.6262,190.74,190.64,13.25556214]
[1735517533713,58.17152796,190.75,190.64,13.25556214]
[1735517534613,3.0905,190.76,190.64,13.25556214]
[1735517534817,13.25556214,190.79,190.67,13.25556214]
[1735517535016,13.25556214,190.79,190.68,3.14]
[1735517535216,2.79607672,190.81,190.68,3.14]
[1735517535416,2.79607672,190.81,190.7,13.25556214]
[1735517536018,2.79607672,190.81,190.71,1.4927]
[1735517536218,2.6256,190.79,190.72,2.6264]
[1735517536418,2.79607672,190.81,190.73,3.14]
[1735517536914,13.25556214,190.82,190.73,3.14]
[1735517537315,16.39556214,190.86,190.73,16.39556214]
[1735517538623,2.6254,190.8,190.73,16.39556214]
[1735517538824,13.25556214,190.86,190.73,16.39556214]
[1735517540416,6.2109,190.88,190.76,13.25556214]
[1735517540920,5.9347606,190.94,190.79,13.25556214]
[1735517541223,16.27896214,190.93,190.8,3.14]
[1735517541616,19.41896214,190.93,190.8,3.14]
[1735517542319,2.6241,190.9,190.82,13.25556214]
[1735517542520,2.6241,190.9,190.8,3.14]
[1735517542521,13.25556214,190.9,190.8,3.14]
[1735517542728,3.1134,190.89,190.8,3.14]
[1735517543025,2.6249,190.84,190.8,3.14]
[1735517543918,3.1134,190.89,190.76,13.25556214]
[1735517544122,2.6253,190.81,190.76,3.14]
[1735517544922,13.25556214,190.87,190.76,3.14]
[1735517544923,2.6249,190.83,190.76,3.14]
[1735517545124,13.25556214,190.87,190.76,16.39556214]
[1735517545820,13.25556214,190.87,190.77,2.6257]
[1735517546024,13.25556214,190.87,190.77,3.14]
[1735517546517,2.6252,190.82,190.77,3.14]
[1735517546919,13.25556214,190.87,190.77,3.14]
[1735517547426,13.25556214,190.87,190.76,16.39556214]
[1735517547823,2.6253,190.81,190.76,16.39556214]
[1735517548316,13.25556214,190.87,190.76,3.14]
[1735517548517,2.6255,190.8,190.76,3.14]
[1735517549724,13.25556214,190.87,190.73,17.35966214]
[1735517549725,13.25556214,190.84,190.73,16.39556214]
[1735517549926,13.25556214,190.84,190.73,13.25556214]
[1735517549927,16.39556214,190.84,190.73,13.25556214]
[1735517550822,2.6262,190.74,190.7,16.39556214]
[1735517551425,2.6262,190.74,190.7,13.25556214]
[1735517551828,3.166,190.8,190.69,3.14]
[1735517551829,2.6256,190.78,190.73,13.25556214]
[1735517552027,3.14,190.85,190.74,3.14]
[1735517552330,3.14,190.86,190.74,3.14]
[1735517552821,3.14,190.86,190.76,13.25556214]
[1735517552822,2.625,190.83,190.76,13.25556214]
[1735517553029,3.14,190.86,190.76,13.25556214]
[1735517553724,3.14,190.86,190.79,13.25556214]
[1735517553923,2.5388,190.9,190.79,16.39556214]
[1735517554118,2.6246,190.86,190.79,19.02096214]
[1735517554350,2.5388,190.9,190.79,19.02096214]
[1735517554820,2.6244,190.87,190.79,19.02096214]
[1735517555023,2.5388,190.9,190.79,19.02096214]
[1735517555731,3.14,190.93,190.82,13.25556214]
[1735517555923,13.25556214,190.92,190.79,16.39556214]
[1735517556230,2.6246,190.86,190.79,19.02106214]
[1735517557027,13.25556214,190.92,190.79,16.39556214]
[1735517557931,2.6249,190.83,190.79,16.39556214]
[1735517558126,13.25556214,190.92,190.79,16.39556214]
[1735517558931,2.625,190.83,190.79,16.39556214]
[1735517559931,3.14,190.88,190.79,16.39556214]
[1735517560130,2.6253,190.81,190.79,3.14]
[1735517561529,2.6249,190.84,190.79,3.14]
[1735517561734,2.6249,190.84,190.79,16.39556214]
[1735517562130,13.25556214,190.92,190.8,2.6253]
[1735517562332,16.39556214,190.92,190.8,2.6253]
[1735517562834,2.6244,190.87,190.82,13.25556214]
[1735517563229,2.6245,190.86,190.82,13.25556214]
[1735517564236,2.6247,190.85,190.82,13.25556214]
[1735517565030,2.6245,190.87,190.82,13.25556214]
[1735517565732,3.14,190.92,190.82,13.25556214]
[1735517565930,2.6245,190.86,190.82,13.25556214]
[1735517566437,3.263,190.93,190.82,13.25556214]
[1735517567337,2.6244,190.87,190.83,2.6249]
[1735517567538,2.6244,190.87,190.84,3.14]
[1735517568241,3.263,190.93,190.84,3.14]
[1735517568446,72.97073081,190.95,190.85,13.25556214]
[1735517568637,72.97073081,190.95,190.88,13.25556214]
[1735517568842,3.14,191.0,190.89,3.14]
[1735517569042,16.39556214,191.01,190.89,5.7641]
[1735517569441,16.39556214,191.01,190.89,3.14]
[1735517570950,13.25556214,190.98,190.89,3.14]
[1735517571849,13.25556214,190.98,190.85,1.4826]
[1735517571850,13.25556214,190.95,190.85,1.4826]
[1735517572051,3.1963,190.94,190.85,1.4826]
[1735517572250,2.6244,190.87,190.85,1.4826]
[1735517572549,3.1963,190.94,190.85,1.4826]
[1735517572946,2.6241,190.9,190.85,1.4826]
[1735517573751,2.6241,190.89,190.85,1.4826]
[1735517574753,2.6244,190.87,190.85,1.4826]
[1735517575649,2.6241,190.9,190.85,1.4826]
[1735517576849,2.6241,190.9,190.85,4.1072]
[1735517577448,3.14,190.96,190.86,2.6245]
[1735517577854,2.6237,190.92,190.87,13.25556214]